Cogmind - Beta 10.2 @@@ ROGUE MODE // 2021.04.14 @ 06:36:28 Player: thingamajigger Result: Destroyed by as-52549 with Assembled Heavy Rifle Performance ------------- Evolutions (3) 1500 Regions Visited (10) 2000 Robots Destroyed (42) 210 Value Destroyed (1393) 1393 Prototype IDs (38) 760 Alien Tech Used (0) 0 Bonus (2039) 2039 TOTAL SCORE: 7902 Bonus ------- Follower Combat Kills 393 Aligned with FarCom 300 Met Imprinter 300 Destroyed Z-Imprinter 1000 Triggered Deep Caves Wall 500 Friendly Fire -454 Cogmind --------- Core Integrity 0/700 Matter 261/300 Energy 99/100 System Corruption 0% Temperature Cool (0) Movement Core (50) Location -7/Deep Caves Parts ------- > --- POWER (1) -------- (None) > --- PROPULSION (6) --- (None) > --- UTILITY (4) ------ (None) > --- WEAPON (2) ------- (None) > --- INVENTORY (4) ---- Zionite Light DM Reactor Experimental Heat Sink High-capacity Storage Unit Makeshift Hacking Suite Peak State ------------ > --- POWER ------------ Makeshift Power Source > --- PROPULSION ------- Improved VTOL Module Flying Fortress v7 > --- UTILITY ---------- Large Storage Unit High-capacity Storage Unit Zionite Weapon Casing Experimental System Shield > --- WEAPON ----------- Zionite Laser-S Zionite Laser-M > --- INVENTORY -------- Zionite Light DM Reactor Zionite Light DM Reactor Experimental Heat Sink Experimental Heat Sink High-capacity Storage Unit Zionite Biocell Zionite Biocell Advanced Weight Redist. System Improved Light Armor Plating Makeshift Armor Plating Makeshift Armor Plating Makeshift Hacking Suite Mobile Refinery Mk. CCLXVII Heavy Riot Gun Zionite Laser-M Autogun Heavy Rocket Launcher Makeshift Hammer [Rating: 78] Favorites ----------- Power Makeshift Power Source Engine Makeshift Power Source Power Core Light Nuclear Core Reactor Zionite Light DM Reactor Propulsion Aluminum Leg Leg Aluminum Leg Flight Unit Flying Fortress v7 Utility Large Storage Unit Device Mobile Refinery Mk. CCLXVII Storage Large Storage Unit Processor Advanced Signal Interpreter Hackware Hacking Suite Protection Makeshift Armor Plating Weapon Small Laser Energy Gun Small Laser Ballistic Gun Autogun Launcher Heavy Rocket Launcher Impact Weapon Makeshift Hammer Slashing Weapon Katana Piercing Weapon Makeshift Spear Build | -11 -10 -10 -10 -9 -8 -7 -7 -7 -7 -7 ------- Run | Scr Mat Min Exi Min Mat Fac Low Low Zio Dee Slots Evolved 6 | . . . . . 4 2 . . . . Power . | . . . . . . . . . . . Propulsion 4 | . . . . . 4 . . . . . Utility 2 | . . . . . . 2 . . . . Weapon . | . . . . . . . . . . . Parts Attached 82 | 5 2 . 1 2 3 13 16 1 16 23 Power 7 | . . . 1 . . 2 1 . 1 2 Engine 4 | . . . 1 . . 1 . . 1 1 Core 2 | . . . . . . 1 1 . . . Reactor 1 | . . . . . . . . . . 1 Propulsion 6 | 2 . . . . 2 2 . . . . Treads . | . . . . . . . . . . . Leg 2 | 2 . . . . . . . . . . Wheel . | . . . . . . . . . . . Hover . | . . . . . . . . . . . Flight 4 | . . . . . 2 2 . . . . Utility 38 | 1 2 . . . 1 3 11 . 11 9 Device 5 | . . . . . . . 2 . 2 1 Storage 12 | 1 2 . . . 1 1 4 . 2 1 Processor 3 | . . . . . . . 1 . 2 . Hackware 3 | . . . . . . 2 . . 1 . Protection 15 | . . . . . . . 4 . 4 7 Artifact . | . . . . . . . . . . . Weapon 31 | 2 . . . 2 . 6 4 1 4 12 Energy Gun 19 | 2 . . . 2 . 3 2 . 2 8 Energy Cannon . | . . . . . . . . . . . Ballistic Gun 5 | . . . . . . 1 2 . 1 1 Ballistic Cannon . | . . . . . . . . . . . Launcher 3 | . . . . . . . . 1 . 2 Special Weapon . | . . . . . . . . . . . Impact Weapon 2 | . . . . . . . . . 1 1 Slashing Weapon 1 | . . . . . . 1 . . . . Piercing Weapon 1 | . . . . . . 1 . . . . Special Melee Weapon . | . . . . . . . . . . . Unidentified Prototypes 15 | . . . . . . 1 1 . 5 8 Parts Lost 25 | . . . . 2 1 3 3 1 1 14 Power 4 | . . . . . . 1 1 1 . 1 Propulsion 3 | . . . . . . 1 . . . 2 Utility 5 | . . . . . . . . . 1 4 Weapon 13 | . . . . 2 1 1 2 . . 7 Highest Loss Streak 7 | . . . . 1 1 3 3 1 1 7 Average Slot Usage (%) 73 | . 84 85 99 99 59 68 61 57 59 58 Engine 6 | . . . 13 14 9 6 . . 6 6 Leg 10 | . 28 28 28 28 . . . . . . Flight 9 | . . . . . 16 20 15 15 15 11 Storage 19 | . 27 28 28 28 18 15 13 15 14 13 Processor 1 | . . . . . . . . 7 3 . Hackware 1 | . . . . . . 11 1 . . 2 Protection 4 | . . . . . . . 6 7 8 9 Energy Gun 12 | . 28 28 28 27 15 8 9 2 . 7 Ballistic Gun 1 | . . . . . . 1 4 2 . 3 Impact Weapon 1 | . . . . . . . . . 6 1 Naked Turns 41 | . . . . . . . . . . 41 Heaviest Build 81 | 7 35 35 38 38 53 75 81 77 76 68 Greatest Support 85 | 20 20 20 20 20 78 85 78 78 78 78 Greatest Overweight (x) 24 | 2 1 1 1 1 . 24 1 . 1 20 Average Overweight (x) . | . . 1 1 1 . . . . . . Largest Inventory Capacity 26 | 6 16 16 16 16 18 26 20 20 20 18 Average Capacity 17 | 5 15 16 16 16 16 19 17 20 17 17 Most Carried 20 | 2 5 6 12 16 14 20 20 20 20 18 Average Carried 13 | 1 3 5 8 12 13 18 17 19 15 14 Final Capacity 20 | 6 16 16 16 16 18 20 20 20 18 4 Final Carried 20 | 2 5 6 12 14 14 20 20 20 17 4 Class Distribution -------------------- 59% | Mutant 18% | Derelict-Mutant 16% | Hauler-Mutant 5% | Hacker-Mutant Dominant Class ---------------- Mutant | -10/Materials Mutant | -10/Mines Mutant | -10/Exiles Mutant | -9/Mines Mutant | -8/Materials Hacker-Mutant | -7/Factory Hauler-Mutant | -7/Lower Caves Hauler-Mutant | -7/Lower Caves Derelict-Mutant | -7/Zion Mutant | -7/Deep Caves Resources | -11 -10 -10 -10 -9 -8 -7 -7 -7 -7 -7 ----------- Run | Scr Mat Min Exi Min Mat Fac Low Low Zio Dee Matter Collected 3373 | 197 63 51 69 20 . 159 619 262 1603 330 Remotely . | . . . . . . . . . . . Salvage Created 1623 | . 110 . . 337 . 228 315 189 . 444 Parts 90 | . 2 . . 20 . 19 11 9 . 29 Haulers Intercepted . | . . . . . . . . . . . Recyclers Shooed . | . . . . . . . . . . . Parts Field Recycled . | . . . . . . . . . . . Retrieved Matter . | . . . . . . . . . . . Parts Self-Destructed 14 | . . . . . . . 10 4 . . Prevented 3 | . . . . . . . 3 . . . Kills | -11 -10 -10 -10 -9 -8 -7 -7 -7 -7 -7 ------- Run | Scr Mat Min Exi Min Mat Fac Low Low Zio Dee Combat Hostiles Destroyed 45 | . 2 . . 10 . 5 6 7 . 15 Melee 1 | . . . . . . 1 . . . . Guns 25 | . 2 . . 10 . 4 6 . . 3 AOE 19 | . . . . . . . . 7 . 12 Classes Destroyed 13 | . 2 . . 2 . 2 2 3 . 2 Tunneler 1 | . . . . 1 . . . . . . Operator 1 | . . . . . . 1 . . . . Watcher 2 | . 1 . . . . 1 . . . . Swarmer 12 | . . . . 3 . 4 5 . . . Grunt 14 | . 2 . . 7 . . . 5 . . Brawler 1 | . . . . . . . . 1 . . Duelist 1 | . . . . . . . . 1 . . Sentry 2 | . . . . . . 1 1 . . . Z-Technician 2 | . . . . . . . . . . 2 Z-Light 6 | . . . . . . . . . . 6 Decomposer 2 | . . . . . . . . 2 . . Packrat 1 | . . . . . . . 1 . . . Tinkerer 1 | . . . . . . . 1 . . . Assembled 8 | . . . . . . . . . . 8 Wasp 1 | . . . . . . . . . . 1 Best Kill Streak 8 | . 2 . . 3 . 4 2 4 . 8 Combat Bots Only 8 | . 2 . . 3 . 4 2 4 . 8 Max Kills in Single Turn 8 | . 1 . . 2 . 1 1 2 . 8 Gunslinging . | . . . . . . . . . . . Exploded 8 | . . . . . . . . 2 . 8 Melee 1 | . . . . . . 1 . . . . Uniques/NPCs Destroyed 1 | . . . . . . . . . . 1 Z-Imprinter (-7/Deep Caves) Combat | -11 -10 -10 -10 -9 -8 -7 -7 -7 -7 -7 -------- Run | Scr Mat Min Exi Min Mat Fac Low Low Zio Dee Damage Taken 4520 | . 153 . . 301 104 550 609 280 . 2523 Core 901 | . 56 . . 78 52 96 62 35 . 522 Absorbed by Shields 13 | . . . . . . 13 . . . . Core Remaining (%) 78 | 100 . . . 46 90 . . . . . Volleys Fired 121 | . 15 . . 26 . 12 20 16 . 32 Largest 2 | . 2 . . 2 . 2 2 1 . 2 Hottest 133 | . 90 . . 90 . 95 110 55 . 133 Shots Fired 195 | . 30 . . 49 . 23 35 16 . 42 Gun 177 | . 30 . . 49 . 23 35 2 . 38 Cannon . | . . . . . . . . . . . Launcher 18 | . . . . . . . . 14 . 4 Special . | . . . . . . . . . . . Kinetic 44 | . . . . . . 10 12 . . 22 Thermal 94 | . 30 . . 49 . 2 . . . 13 Explosive 18 | . . . . . . . . 14 . 4 Electromagnetic 39 | . . . . . . 11 23 2 . 3 Robot Hit Streak 12 | . 12 . . 10 . 8 6 2 . 4 Robot Miss Streak 4 | . 2 . . 4 . 2 2 3 . 3 Penetration Max . | . . . . . . . . . . . Secondary Targets 1 | . . . . . . . 1 . . . Max Gunslinging Chain 1 | . . . . . . . 1 . . . Shots Hit Robots 127 | . 19 . . 34 . 22 22 7 . 23 Core Hits 93 | . 6 . . 18 . 12 13 14 . 30 Critical Hits . | . . . . . . . . . . . Critical Kills . | . . . . . . . . . . . Critical Parts Destroyed . | . . . . . . . . . . . Melee Attacks 65 | . . . . . . 19 . . 46 . Impact 46 | . . . . . . . . . 46 . Slashing . | . . . . . . . . . . . Piercing 19 | . . . . . . 19 . . . . Sneak Attacks . | . . . . . . . . . . . Combat Hostiles . | . . . . . . . . . . . Follow-up Attacks . | . . . . . . . . . . . Damage Inflicted 4186 | . 223 . . 386 . 430 487 981 . 1679 Guns 1701 | . 223 . . 386 . 229 423 41 . 399 Cannons . | . . . . . . . . . . . Explosions 2284 | . . . . . . . 64 940 . 1280 Melee 201 | . . . . . . 201 . . . . Ramming . | . . . . . . . . . . . Kinetic 354 | . . . . . . 57 69 . . 228 Thermal 825 | . 223 . . 386 . . 64 . . 152 Explosive 2220 | . . . . . . . . 940 . 1280 Electromagnetic 586 | . . . . . . 172 354 41 . 19 Impact . | . . . . . . . . . . . Slashing . | . . . . . . . . . . . Piercing 201 | . . . . . . 201 . . . . Highest Corruption . | . . . . . . . . . . . Average Corruption . | . . . . . . . . . . . Corruption Purged . | . . . . . . . . . . . Overload Shots . | . . . . . . . . . . . Overflow Damage 54 | . . . . . . 5 . 7 . 42 Projectiles . | . . . . . . . . . . . Explosions 49 | . . . . . . . . 7 . 42 Melee 5 | . . . . . . 5 . . . . Knockbacks . | . . . . . . . . . . . Impact . | . . . . . . . . . . . Kinetic . | . . . . . . . . . . . Secondary . | . . . . . . . . . . . Self-Inflicted Damage 278 | . . . . . . . 51 170 . 57 Shots 6 | . . . . . . . 1 4 . 1 Rammed . | . . . . . . . . . . . Targets Rammed . | . . . . . . . . . . . Kicked . | . . . . . . . . . . . Crushed . | . . . . . . . . . . . Highest Temperature 385 | . 219 . . 120 6 64 181 18 . 385 Average Temperature 77 | . 79 . . 44 6 24 72 6 . 129 Received Heat Transfer 918 | . 84 . . 126 45 81 60 63 . 459 Effects 4 | . 3 . . . . . . . . 1 Shutdowns 1 | . . . . . . . . . . 1 Energy Bleed 1 | . 1 . . . . . . . . . Interference 2 | . 2 . . . . . . . . . Siege Activations . | . . . . . . . . . . . Robots Corrupted . | . . . . . . . . . . . Combat Hostiles . | . . . . . . . . . . . Parts Fried . | . . . . . . . . . . . Impact Corruptions . | . . . . . . . . . . . Robots Melted . | . . . . . . . . . . . Combat Hostiles . | . . . . . . . . . . . Parts Melted . | . . . . . . . . . . . Heat Transferred 1764 | . 595 . . 934 . . 50 . . 185 Parts Sabotaged . | . . . . . . . . . . . Parts Stolen . | . . . . . . . . . . . Parts Stripped . | . . . . . . . . . . . Power Chain Reactions 1 | . . . . . . . 1 . . . Missiles Intercepted . | . . . . . . . . . . . Alert | -11 -10 -10 -10 -9 -8 -7 -7 -7 -7 -7 ------- Run | Scr Mat Min Exi Min Mat Fac Low Low Zio Dee Peak Influence 193 | . 92 35 . 193 23 151 . . . . Initial 35 | . . 35 . . . 9 . . . . Average 60 | . 39 35 . 87 3 59 . . . . Maximum Alert Level . | . . . . . . . . . . . Low Security (%) 100 | 100 100 100 . 100 100 100 . . . . Level 1 . | . . . . . . . . . . . Level 2 . | . . . . . . . . . . . Level 3 . | . . . . . . . . . . . Level 4 . | . . . . . . . . . . . Level 5 . | . . . . . . . . . . . High Security . | . . . . . . . . . . . Max Security . | . . . . . . . . . . . Squads Dispatched 5 | . 2 . . . . 3 . . . . Investigation 1 | . . . . . . 1 . . . . Extermination 1 | . . . . . . 1 . . . . Reinforcement 3 | . 2 . . . . 1 . . . . Assault . | . . . . . . . . . . . Garrison . | . . . . . . . . . . . Intercept . | . . . . . . . . . . . Construction Impeded . | . . . . . . . . . . . Haulers Reinforced . | . . . . . . . . . . . Stealth | -11 -10 -10 -10 -9 -8 -7 -7 -7 -7 -7 --------- Run | Scr Mat Min Exi Min Mat Fac Low Low Zio Dee Distress Signals . | . . . . . . . . . . . Communications Jammed . | . . . . . . . . . . . Distress Signals . | . . . . . . . . . . . Times Spotted 110 | . 10 . . 14 4 13 12 8 . 49 Peak Tracking Total 36 | . 3 . . 3 5 4 6 4 . 36 Tactical Retreats 8 | . . . . 1 . 1 3 1 . 2 Traps | -11 -10 -10 -10 -9 -8 -7 -7 -7 -7 -7 ------- Run | Scr Mat Min Exi Min Mat Fac Low Low Zio Dee Traps Triggered 1 | . . . . . . 1 . . . . Indirectly . | . . . . . . . . . . . Trap Hack Attempts . | . . . . . . . . . . . Triggered . | . . . . . . . . . . . Disarmed . | . . . . . . . . . . . Reprogrammed . | . . . . . . . . . . . Reused 2 | . . . . . . . . . . 2 Traps Extracted . | . . . . . . . . . . . Installed 4 | . . . . . . . . . . 4 Triggered . | . . . . . . . . . . . Machines | -11 -10 -10 -10 -9 -8 -7 -7 -7 -7 -7 ---------- Run | Scr Mat Min Exi Min Mat Fac Low Low Zio Dee Machines Disabled 1 | . . . . . . . 1 . . . Max in Single Turn 1 | . . . . . . . 1 . . . Machines Sabotaged . | . . . . . . . . . . . Garrisons Compromised . | . . . . . . . . . . . Overloaded Fab Kills . | . . . . . . . . . . . Fab Network Shutdowns . | . . . . . . . . . . . Hacking | -11 -10 -10 -10 -9 -8 -7 -7 -7 -7 -7 --------- Run | Scr Mat Min Exi Min Mat Fac Low Low Zio Dee Machines Accessed 13 | . 2 . 5 . 3 2 1 . . . Terminals 6 | . 2 . . . 2 2 . . . . Fabricators . | . . . . . . . . . . . Repair Stations . | . . . . . . . . . . . Recycling Units . | . . . . . . . . . . . Scanalyzers 1 | . . . . . 1 . . . . . Garrison Access . | . . . . . . . . . . . Total Hacks 74 | . 4 . 50 . 12 7 1 . . . Successful 65 | . 2 . 50 . 10 2 1 . . . Failed 9 | . 2 . . . 2 5 . . . . Catastrophic 1 | . . . . . 1 . . . . . Database Lockouts . | . . . . . . . . . . . Manual 15 | . 4 . 1 . 6 4 . . . . Terminals 17 | . 4 . . . 6 7 . . . . Fabricators . | . . . . . . . . . . . Repair Stations . | . . . . . . . . . . . Recycling Units . | . . . . . . . . . . . Scanalyzers 6 | . . . . . 6 . . . . . Garrison Access . | . . . . . . . . . . . Terminal Hacks 54 | . . . 50 . 2 1 1 . . . Record 49 | . . . 49 . . . . . . . Robot Analysis 1 | . . . . . . 1 . . . . Open Door 1 | . . . . . . . 1 . . . Branch Access Points 1 | . . . . . 1 . . . . . Zone Layout 1 | . . . . . 1 . . . . . EX-Prototype ID Bank 1 | . . . 1 . . . . . . . Fabricator Hacks . | . . . . . . . . . . . Repair Station Hacks . | . . . . . . . . . . . Recycling Unit Hacks . | . . . . . . . . . . . Scanalyzer 6 | . . . . . 6 . . . . . Insert Component 3 | . . . . . 3 . . . . . Analyze 3 | . . . . . 3 . . . . . Garrison Access Hacks . | . . . . . . . . . . . Unauthorized Hacks 5 | . 2 . . . 2 1 . . . . Terminals 5 | . 2 . . . 2 1 . . . . Botnet 5 | . 2 . . . 2 1 . . . . Fabricators . | . . . . . . . . . . . Repair Stations . | . . . . . . . . . . . Recycling Units . | . . . . . . . . . . . Scanalyzers . | . . . . . . . . . . . Garrison Access . | . . . . . . . . . . . Data Cores Recovered . | . . . . . . . . . . . Used . | . . . . . . . . . . . Hacking Detections 6 | . 2 . . . 2 2 . . . . Full Trace Events 1 | . . . . . . 1 . . . . Feedback Events . | . . . . . . . . . . . Feedback Blocked . | . . . . . . . . . . . Robot Schematics Acquired . | . . . . . . . . . . . Robots Built . | . . . . . . . . . . . Matter . | . . . . . . . . . . . Time . | . . . . . . . . . . . Total Robot Build Rating . | . . . . . . . . . . . Part Schematics Acquired 3 | . . . . . 3 . . . . . Parts Built . | . . . . . . . . . . . Matter . | . . . . . . . . . . . Time . | . . . . . . . . . . . Total Part Build Rating . | . . . . . . . . . . . Parts Repaired . | . . . . . . . . . . . Time . | . . . . . . . . . . . Parts Recycled . | . . . . . . . . . . . Recycled Matter . | . . . . . . . . . . . Retrieved Matter . | . . . . . . . . . . . Retrieved Components . | . . . . . . . . . . . Parts Scanalyzed 3 | . . . . . 3 . . . . . Part Schematics Acquired 3 | . . . . . 3 . . . . . Parts Damaged . | . . . . . . . . . . . Bothacking | -11 -10 -10 -10 -9 -8 -7 -7 -7 -7 -7 ------------ Run | Scr Mat Min Exi Min Mat Fac Low Low Zio Dee Used RIF Installer . | . . . . . . . . . . . Robots Hacked . | . . . . . . . . . . . Non-combat . | . . . . . . . . . . . Combat . | . . . . . . . . . . . Robot Hacks Applied . | . . . . . . . . . . . Relay Couplers Released . | . . . . . . . . . . . Robots Rewired . | . . . . . . . . . . . Allies Hacked . | . . . . . . . . . . . Hacks Repelled . | . . . . . . . . . . . Allies | -11 -10 -10 -10 -9 -8 -7 -7 -7 -7 -7 -------- Run | Scr Mat Min Exi Min Mat Fac Low Low Zio Dee Total Allies 7 | . . 3 . . . . . . 4 . Largest Group 4 | . . 3 1 1 . . . . 4 4 Highest-Rated Group 181 | . . 40 16 16 . . . . 181 181 Highest-Rated Ally 99 | . . 16 16 16 . . . . 99 99 Total Orders . | . . . . . . . . . . . Ally Attacks 106 | . . . . 5 . . . . . 101 Total Damage 3323 | . . . . 57 . . . . . 3266 Kills 17 | . . . . 3 . . . . . 14 Allies Corrupted 1 | . . . . . . . . . . 1 Allies Melted 1 | . . . . . . . . . . 1 Intel | -11 -10 -10 -10 -9 -8 -7 -7 -7 -7 -7 ------- Run | Scr Mat Min Exi Min Mat Fac Low Low Zio Dee Robot Analysis Total 1 | . . . . . . 1 . . . . Derelict Logs Recovered 7 | . . 2 . 2 . . 1 1 1 . Drone Launches . | . . . . . . . . . . . Drone Recoveries . | . . . . . . . . . . . Exploration | -11 -10 -10 -10 -9 -8 -7 -7 -7 -7 -7 ------------- Run | Scr Mat Min Exi Min Mat Fac Low Low Zio Dee Turns Passed 6859 | 69 301 342 937 862 81 561 771 308 1893 734 Spaces Moved 7179 | 53 159 219 620 331 165 875 1063 431 2640 623 Core 113 | 18 . . . . . 1 . . . 94 Treads . | . . . . . . . . . . . Legs 1364 | 35 159 219 620 331 . . . . . . Wheels . | . . . . . . . . . . . Hover . | . . . . . . . . . . . Flight 5702 | . . . . . 165 874 1063 431 2640 529 Fastest Speed 35 | 50 120 150 150 150 42 35 39 39 39 39 Average Speed 64 | 113 148 150 150 150 43 45 51 44 39 53 Slowest Speed 1250 | 150 150 150 150 150 50 1250 124 50 150 1050 Overloaded Moves . | . . . . . . . . . . . Propulsion Burnouts . | . . . . . . . . . . . Robots Hopped 9 | . . . . . 1 5 3 . . . Cave-ins Triggered . | . . . . . . . . . . . Exploration Rate (%) 53 | 3 32 48 93 55 19 25 94 60 86 69 Regions Visited 10 Branch Regions 7 Pre-discovered Areas 6 | . . 1 1 1 . . 1 . 2 . Known Exits Taken 4 | . . 1 . . 1 . 1 1 . . Unknown Exits Taken 6 | 1 1 . 1 1 . 1 . . 1 . Scrap Searched 12 | . . 2 . . . . 5 2 3 . Spaces Dug 21 | . . . . . . 2 . . 19 . Terrain Destroyed 224 | . . . . . . 2 7 168 19 28 Melee 21 | . . . . . . 2 . . 19 . Projectile 5 | . . . . . . . . . . 5 AOE 198 | . . . . . . . 7 168 . 23 Terrain Rammed . | . . . . . . . . . . . Walls Destroyed . | . . . . . . . . . . . Machines Disabled . | . . . . . . . . . . . Actions | -11 -10 -10 -10 -9 -8 -7 -7 -7 -7 -7 --------- Run | Scr Mat Min Exi Min Mat Fac Low Low Zio Dee Total 9151 | 59 194 233 628 650 173 992 1254 534 3440 994 Wait 1508 | . 15 14 . 280 4 35 110 78 701 271 Move 7151 | 52 158 218 619 330 162 864 1056 430 2639 623 Hop 9 | . . . . . 1 5 3 . . . Pick Up 99 | 2 3 1 6 8 1 17 29 4 17 11 Fast Attach 40 | 5 1 . . . 1 6 7 . 10 10 Attach 28 | . . . 1 2 1 3 7 . 5 9 Detach 25 | . . . . . 2 2 7 . 5 9 Swap 15 | . 1 . . . 1 4 2 1 2 4 Drop 72 | . 1 . 2 4 . 11 13 5 15 21 Fire 121 | . 15 . . 26 . 12 20 16 . 32 Melee 65 | . . . . . . 19 . . 46 . Ram . | . . . . . . . . . . . Kick . | . . . . . . . . . . . Crush . | . . . . . . . . . . . Escape Stasis 14 | . . . . . . 14 . . . . Rewire . | . . . . . . . . . . . Trap 4 | . . . . . . . . . . 4 Miscellaneous . | . . . . . . . . . . . Route ------- -11/Scrapyard -10/Materials (discovered 2 exits: [*Mat] / [*Min]) -10/Mines (discovered 3 exits: [*Mat x2] / *Exi) -10/Exiles (discovered 2 exits: [*Min x2]) -9/Mines -8/Materials (discovered 3 exits: *Fac / Sto x2) -7/Factory -7/Lower Caves -7/Lower Caves (discovered 2 exits: *Fac / *Zio) -7/Zion (discovered 2 exits: [*Dee] / [*Pro]) -7/Deep Caves History --------- Turn | Location | Event 3 | -11/Scrapyard | Discovered new exit (range 15) 70 | -11/Scrapyard | Entered Materials 264 | -10/Materials | Discovered new exit (range 5) 316 | -10/Materials | Build established: Mutant 342 | -10/Materials | Discovered new exit (range 11) 371 | -10/Materials | Entered Mines 425 | -10/Mines | Discovered new exit (range 11) 456 | -10/Mines | Met a Derelict bent on vengeance 518 | -10/Mines | Assisted by bots powering up and referring to "LRC-V3" 555 | -10/Mines | Identified exit to Exiles 668 | -10/Mines | Learned location of Storage (-8) 682 | -10/Mines | Discovered new exit (range 13) 707 | -10/Mines | Deemed a non-threat by the Exiles lab entrance 713 | -10/Mines | Entered Exiles 713 | -10/Exiles | Accompanied by 1 ally 755 | -10/Exiles | Met 8R-AWN 765 | -10/Exiles | Discovered new exit (range 14) 827 | -10/Exiles | Met EX-HEX 925 | -10/Exiles | Met EX-DEC 952 | -10/Exiles | Visited The Gauntlet 1149 | -10/Exiles | Learned location of Zion (-7) 1247 | -10/Exiles | Discovered new exit (range 14) 1400 | -10/Exiles | Met EX-BIN 1421 | -10/Exiles | Aligned with FarCom system 1422 | -10/Exiles | Given EX-Vault access code 1493 | -10/Exiles | Opened EX-Vault 1503 | -10/Exiles | Found Flying Fortress v7 1533 | -10/Exiles | Warned to stay clear of 0b10 Research branches 1650 | -10/Exiles | Left Exiles lab with Flying Fortress v7 1650 | -10/Exiles | Entered Mines 1650 | -9/Mines | Accompanied by 1 ally 1738 | -9/Mines | Excavation squad dispatched 1738 | -9/Mines | A large section of the Mines collapsed 1988 | -9/Mines | Excavation squad dispatched 2165 | -9/Mines | Found a hidden stash of uninstalled traps 2192 | -9/Mines | Learned 2 Materials zone layouts 2238 | -9/Mines | Excavation squad dispatched 2433 | -9/Mines | Core integrity fell below 50% 2475 | -9/Mines | Discovered new exit (range 15) 2497 | -9/Mines | A weapon hastily lodged in a ceiling crevice suddenly fell to the ground 2512 | -9/Mines | Entered Materials 2512 | -8/Materials | Evolved 4 slots: Propulsion x4 2513 | -8/Materials | Identified exit to Storage 2513 | -8/Materials | Identified exit to Factory 2593 | -8/Materials | Entered Factory 2593 | -7/Factory | Evolved 2 slots: Utility x2 3108 | -7/Factory | Lost 3 parts (1p1n1w) 3132 | -7/Factory | Build established: Hacker-Mutant 3142 | -7/Factory | Discovered new exit (range 13) 3154 | -7/Factory | Entered Lower Caves 3246 | -7/Lower Caves | Found Prototype Device 3246 | -7/Lower Caves | Identified Heart of Steel 3509 | -7/Lower Caves | Attracted the attention of an 0b10 outpost 3568 | -7/Lower Caves | Lost 3 parts (1p2w) 3584 | -7/Lower Caves | Attracted the attention of an 0b10 checkpoint 3595 | -7/Lower Caves | Build established: Hauler-Mutant 3871 | -7/Lower Caves | Discovered new exit (range 10) 3884 | -7/Lower Caves | Identified exit to Lower Caves 3925 | -7/Lower Caves | Entered another Lower Caves area 3965 | -7/Lower Caves | Discovered new exit (range 7) 3966 | -7/Lower Caves | Identified exit to Factory 4118 | -7/Lower Caves | Learned Factory emergency access door positions 4197 | -7/Lower Caves | Discovered new exit (range 7) 4200 | -7/Lower Caves | Identified exit to Zion 4233 | -7/Lower Caves | Entered Zion 4263 | -7/Zion | Discovered new exit (range 8) 4295 | -7/Zion | Gained Derelict followers 4477 | -7/Zion | Given A8's code to call for help 4477 | -7/Zion | Learned location of Data Miner (-6) 4532 | -7/Zion | Found Prototype Processor 4532 | -7/Zion | Identified Spectral Analyzer 4570 | -7/Zion | Given the Hacking Drone Bay 4597 | -7/Zion | Found Prototype Device 4597 | -7/Zion | Identified Mobile Refinery Mk. CCLXVII 4903 | -7/Zion | Build established: Mutant 5132 | -7/Zion | Heart of Steel transformed into Warbot 5439 | -7/Zion | Build established: Derelict-Mutant 5461 | -7/Zion | Rebuked by Imprinter 5863 | -7/Zion | Discovered new exit (range 5) 5863 | -7/Zion | Saw the warning signs outside the Deep Caves entrance 5998 | -7/Zion | Found Prototype Processor 5998 | -7/Zion | Identified Exp. Melee Analysis Suite 6001 | -7/Zion | Found Prototype Hackware 6001 | -7/Zion | Identified Exp. System Shield 6126 | -7/Zion | Entered Deep Caves 6126 | -7/Deep Caves | Accompanied by 4 allies (Warbot) 6220 | -7/Deep Caves | Attacked by Z-Imprinter 6228 | -7/Deep Caves | Destroyed Z-Imprinter 6267 | -7/Deep Caves | Found Prototype Protection 6267 | -7/Deep Caves | Identified Zio. Weapon Casing 6326 | -7/Deep Caves | Build established: Mutant 6345 | -7/Deep Caves | Z-Facility disabled 6393 | -7/Deep Caves | Found Prototype Protection 6393 | -7/Deep Caves | Identified Zio. Heavy Carapace 6396 | -7/Deep Caves | Found Zio. Weapon Casing 6545 | -7/Deep Caves | Lost 3 parts (1u2w) 6657 | -7/Deep Caves | Spotted as-75916 6707 | -7/Deep Caves | Lost 7 parts (2n2u3w) 6750 | -7/Deep Caves | Core integrity fell below 50% 6758 | -7/Deep Caves | Allies destroyed as-75916 6801 | -7/Deep Caves | Triggered Deep Caves wall 6804 | -7/Deep Caves | Spotted AS-56612 6824 | -7/Deep Caves | Core integrity fell below 20% 6833 | -7/Deep Caves | Destroyed 8 combat bots 6850 | -7/Deep Caves | Lost 4 parts (1p1u2w) 6860 | -7/Deep Caves | Destroyed by as-52549 with Assembled Heavy Rifle Last Messages --------------- 06812_ as-62422 destroyed. 06812_ as-94052 destroyed. 06812_ as-50656 destroyed. 06812_ as-58706 destroyed. 06812_ Destroyed Asb. F-torch. 06812_ Destroyed Asb. Hover Unit. 06812_ XS-KCQ(M) destroyed. 06815_ as-05891 destroyed. 06815_ as-85741 destroyed. 06815_ Warbot shuts down. 06815_ Mak. Power Source destroyed. 06816_ as-43579 sneak attacks. 06816_ Warbot system corrupted by crushing effect. 06816_ as-55030 sneak attacks. 06816_ as-91949 sneak attacks. 06816_ Dropped Hcp. Storage Unit. 06817_ Warbot system terminally corrupted. 06817_ Dropped Mak. Armor Plating. 06817_ Extracted 26 energy. 06819_ Mak. Hammer destroyed. Map ----- +----------------------------------------------------+ | | | | | | | | | | | | | | | | | | | | | | | | | ?????????????????????????????????????????????##### | | ?????????????????????????????????????????????# = = | | ?????????????????????????????????????????????# ! | | ??????????????????????????????????####???????# ### | | ??????????????????????????????##### #??????## ### | | ?????????????????????????????## #????### # | | ?????????????????????????????# ###??# | | ?????????????????????????????# #??# | | ?????????????????????????##### "" #??## | | ?????????????????????????# """ #???### | | ???????????????????????### ## " #?????## | | ??????????????????????## ## ## #?????# | | ??????????????????????# ### #### ###??#### | | ??????????????????????## @ ## #?# #??## # % | | ???????????????????????## ## #### #??# | | ????????????????????????# a ## ##?#*!# | | ????????????????????????# a a ## ####### | | ????????????????????????# ### # #???## | | ????????????????????????## ### # #???# | | ??????????????????????????# # #???## | | ??????????????????????????# # #?#### | | ??????????????????????????# # ### # | | ?????????????????????????## ## | | ???? #??????????????????# ### | | ???? #? #???????????????# #?# | | ???# ## ##?#????????????##### ##?## | | ??# ? ????????????????## ###???### | | ## ? ????????????????## ##???????# | | # #???# ???????########## ##???????## | | # #?????# ?????## ## #????????#! | | # #??????# ###### #?????##### | | # #????????# ##????## ## | | # #??????????# ###?????# ## | | # #??????????#### ###???????# # | | ##????????????# ##????????## | | #????????????## ##???####### | | #????????????## #???## | | ####????????## ##### | +----------------------------------------------------+ Best States ------------- Heat Dissipation 60 Energy Generation 15 Energy Capacity 170 Matter Stores 300 Matter Capacity 500 Sight Range 24 Terrain Scan Density 10 Armor Coverage 1200 Utility Shielding 33 Weapon Shielding 100 Evasion (%) 63 Offensive Hacking 20 Defensive Hacking 16 Item Schematics ----------------- Lrg. Storage Unit | -8/Materials | Scanalyzed Hacking Suite | -8/Materials | Scanalyzed Hcp. Matter Pod | -8/Materials | Scanalyzed Robot Schematics ------------------ None Fabricated ------------ Nothing Alien Tech Used ----------------- None Achievements -------------- None Challenges ------------ None Game ------ Seed AssemblyFlightClaws Manual? 0 Play Time 01:11:28 Cumulative 41.3 hours Start 2021.04.14 @ 04:46:34 End 2021.04.14 @ 06:36:28 Sessions 2 Manual Loads 0 Difficulty Rogue Special Mode None Game No. 80 Rogue 69 Adventurer 4 Explorer 7 Win Type - Total 2 Types 2/0/0/0/0/0/0/0/0 Lore% 36 Gallery% 60 Achievement% 38 Wizard Run 0 Options --------- ASCII 0 Keyboard 0 Movement Numpad Keybinds 0 Fullscreen 1 Font 18/SmallcapsGlow Map View 76x50 Tactical HUD 1 Map Filters NONE Filters NONE Steam 1 RUN: 69627d57-2ff3-47dd-aee0-19ca140f6bbb